{"text_format":"3","workbook":"xlsx","n_sheets":2,"sheets":["Sledování odpovědí","Souhrn odpovědí"],"not_rendered":{"charts":2,"defined_names":22},"read":"whole","date_system":"1900"}

{"sheet":"Sledování odpovědí","index":0,"n_rows":15,"n_cols":15,"rows_kept":15,"merged":[[0,3,0,4],[0,5,0,7]]}
[{"$nulls":5},"SOUHRN ODPOVĚDÍ"]
[null,"DATUM SVATBY",null,"sledování účasti na svatbě"]
[null,{"$f":"TODAY()+283","v":"2023-05-18"},null,"JMÉNO HOSTA","POZVÁNKA?","ODPOVĚĎ","POČET","HOST (ZE STRANY)","VZTAH","ADRESA","MĚSTO","KRAJ","PSČ","TELEFON","KONTAKTNÍ E-MAIL"]
[null,"DNY DO SVATBY",null,"Jméno 1","Ano","Ano",1,"Nastávající manžel(ka) 1","Bratr","Adresa","Město","Kraj","PSČ","Telefon","adresa@example.com"]
[null,{"$f":"ZbýváDní","v":283},null,"Jméno 2","Ano","Ne",3,"Nastávající manžel(ka) 1","Přítel(kyně)","Adresa","Město","Kraj","PSČ","Telefon","adresa@example.com"]
[null,"ZÚČASTNÍ SE",null,"Jméno 3","Ano","Ano",1,"Jiné","Přítel(kyně)","Adresa","Město","Kraj","PSČ","Telefon","adresa@example.com"]
[null,{"$f":"CelkemSeZúčastní","v":12},null,"Jméno 4","Ano","Ne",2,"Nastávající manžel(ka) 2","Přítel(kyně)","Adresa","Město","Kraj","PSČ","Telefon","adresa@example.com"]
[null,"NEZÚČASTNÍ SE",null,"Jméno 5","Ano","Ano",2,"Nastávající manžel(ka) 2","Přítel(kyně)","Adresa","Město","Kraj","PSČ","Telefon","adresa@example.com"]
[null,{"$f":"CelkemSeNezúčastní","v":6},null,"Jméno 6","Ano","Nezávazně",null,"Jiné","Přítel(kyně)","Adresa","Město","Kraj","PSČ","Telefon","adresa@example.com"]
[null,"NEROZHODNÍ",null,"Jméno 7","Ano","Ano",2,"Nastávající manžel(ka) 2","Přítel(kyně)","Adresa","Město","Kraj","PSČ","Telefon","adresa@example.com"]
[null,{"$f":"Nevyřízeno","v":1},null,"Jméno 8","Ano","Ne",1,"Jiné","Přítel(kyně)","Adresa","Město","Kraj","PSČ","Telefon","adresa@example.com"]
[{"$nulls":3},"Jméno 9","Ano","Ano",4,"Nastávající manžel(ka) 1","Přítel(kyně)","Adresa","Město","Kraj","PSČ","Telefon","adresa@example.com"]
[{"$nulls":3},"Jméno 10","Ano","Ano",2,"Nastávající manžel(ka) 1","Přítel(kyně)","Adresa","Město","Kraj","PSČ","Telefon","adresa@example.com"]
[{"$nulls":3},"Jméno 11","Ano",null,null,"Nastávající manžel(ka) 2","Bratr","Adresa","Město","Kraj","PSČ","Telefon","adresa@example.com"]
[{"$nulls":3},"CELKEM:",{"$f":"COUNTIF('Sledování odpovědí'!$E$4:$E$14,\"Ano\")","v":11},{"$f":"COUNTA('Sledování odpovědí'!$F$4:$F$14)","v":10},{"$f":"SUBTOTAL(109,tabulkaPozvánky[POČET])","v":18}]

{"sheet":"Souhrn odpovědí","index":1,"n_rows":11,"n_cols":15,"rows_kept":11,"merged":[[0,3,0,4],[0,5,0,8],[2,3,6,3],[2,4,6,4],[7,3,11,3],[7,4,11,4]]}
[{"$nulls":3},"SLEDOVÁNÍ ODPOVĚDÍ"]
[null,"DATUM SVATBY",null,"souhrn odpovědí",{"$nulls":10},"poznámky"]
[null,{"$f":"DatumSvatby","v":"2023-05-18"},null,"ANO","Skupinový pruhový graf zobrazující v této buňce rozdělení hostů pro odpovědi Ano"]
[null,"DNY DO SVATBY",{"$nulls":3},"JINÝ",{"$f":"IFERROR(SUMIFS(tabulkaPozvánky[POČET],tabulkaPozvánky[HOST (ZE STRANY)],\"=Jiné\",tabulkaPozvánky[ODPOVĚĎ],\"Ano\"),0)","v":1},{"$f":"tabulkaPozvánky[[#Totals],[POZVÁNKA?]]","v":11}]
[null,{"$f":"ZbýváDní","v":283},{"$nulls":3},"NASTÁVAJÍCÍ MANŽEL(KA) 2",{"$f":"IFERROR(SUMIFS(tabulkaPozvánky[POČET],tabulkaPozvánky[HOST (ZE STRANY)],\"=Nastávající manžel(ka) 2\",tabulkaPozvánky[ODPOVĚĎ],\"Ano\"),0)","v":4},{"$f":"tabulkaPozvánky[[#Totals],[POZVÁNKA?]]","v":11}]
[null,"ZÚČASTNÍ SE",{"$nulls":3},"NASTÁVAJÍCÍ MANŽEL(KA) 1",{"$f":"IFERROR(SUMIFS(tabulkaPozvánky[POČET],tabulkaPozvánky[HOST (ZE STRANY)],\"=Nastávající manžel(ka) 1\",tabulkaPozvánky[ODPOVĚĎ],\"Ano\"),0)","v":7},{"$f":"tabulkaPozvánky[[#Totals],[POZVÁNKA?]]","v":11}]
[null,{"$f":"CelkemSeZúčastní","v":12}]
[null,"NEZÚČASTNÍ SE",null,"NE","Skupinový pruhový graf zobrazující v této buňce rozdělení hostů pro odpovědi Ne"]
[null,{"$f":"CelkemSeNezúčastní","v":6},{"$nulls":3},"JINÝ",{"$f":"IFERROR(SUMIFS(tabulkaPozvánky[POČET],tabulkaPozvánky[HOST (ZE STRANY)],\"=Jiné\",tabulkaPozvánky[ODPOVĚĎ],\"Ano\"),0)","v":1},{"$f":"tabulkaPozvánky[[#Totals],[POZVÁNKA?]]","v":11}]
[null,"NEROZHODNÍ",{"$nulls":3},"NASTÁVAJÍCÍ MANŽEL(KA) 2",{"$f":"IFERROR(SUMIFS(tabulkaPozvánky[POČET],tabulkaPozvánky[HOST (ZE STRANY)],\"=Nastávající manžel(ka) 2\",tabulkaPozvánky[ODPOVĚĎ],\"Ne\"),0)","v":2},{"$f":"tabulkaPozvánky[[#Totals],[POZVÁNKA?]]","v":11}]
[null,{"$f":"Nevyřízeno","v":1},{"$nulls":3},"NASTÁVAJÍCÍ MANŽEL(KA) 1",{"$f":"IFERROR(SUMIFS(tabulkaPozvánky[POČET],tabulkaPozvánky[HOST (ZE STRANY)],\"=Nastávající manžel(ka) 1\",tabulkaPozvánky[ODPOVĚĎ],\"Ne\"),0)","v":3},{"$f":"tabulkaPozvánky[[#Totals],[POZVÁNKA?]]","v":11}]